{"text_format":"3","workbook":"xlsx","n_sheets":2,"sheets":["CÓMO USAR ESTE LIBRO","LIBRO DE CALIFICACIONES"],"not_rendered":{"defined_names":7},"read":"whole","date_system":"1900"}

{"sheet":"CÓMO USAR ESTE LIBRO","index":0,"n_rows":10,"n_cols":2,"rows_kept":10}
[null,"INSTRUCCIONES"]
[null,"Use la hoja de cálculo LIBRO DE CALIFICACIONES para calcular las calificaciones donde a cada tarea le corresponde un número concreto de puntos. "]
[null,"Instrucciones: No olvide guardar copias de seguridad de sus calificaciones."]
[null,"1. Rellene el nombre de la escuela, la información de la clase, los nombres de los alumnos y los identificadores de los estudiantes (opcional).   "]
[null,"2. Ajuste la tabla de Calificación y Nota media para que coincida con el sistema de puntuación normal que usa."]
[null,"3. Rellene los nombres de prueba, cuestionario o tarea (por ejemplo, \"Cuestionario 1\") a partir de la celda H8, junto con los puntos que corresponden a cada tarea. "]
[null,"4. Rellene las puntuaciones para cada alumno en cada tarea o prueba. Las columnas de \"Promedio\", \"Puntuación\", \"Nota alfabética\" y \"Nota media\" se calculan automáticamente, pero se pueden reemplazar si lo desea. Para otorgar puntos de crédito adicionales, simplemente de más puntos a una tarea que el total de puntos posible que aparece para esa tarea."]
[null,"Si desea cambiar el área que se imprime, use el comando \"Área de impresión\" en el menú \"Diseño de página\"."]
[null,"Las puntuaciones para calificaciones se basan en una escala de porcentaje estándar según el número total de puntos asignados en las filas 8 y 9. Ajuste cada tarea o prueba a los puntos que prefiera y, después, ajuste el porcentaje con la calificación correspondiente. Sobrescriba las celdas de Puntuación para realizar cambios de forma manual."]
[null,"Escriba cada tarea, cuestionario o prueba y los puntos que le corresponden en las celdas H8 a X9."]

{"sheet":"LIBRO DE CALIFICACIONES","index":1,"n_rows":24,"n_cols":24,"rows_kept":24,"merged":[[1,1,2,6],[3,1,3,6],[4,1,6,6],[7,4,7,6],[8,4,8,6],[10,4,10,6],[11,4,11,6],[20,1,20,2],[20,3,20,4],[21,1,21,2],[21,3,21,4],[22,1,22,2],[22,3,22,4],[23,1,23,2],[23,3,23,4]]}
[null,"EL NOMBRE DE LA ESCUELA"]
[null,"Nombre del profesor"]
[{"$nulls":7},"Puntuación",{"$f":"I4*TotalPoints","v":118},120,126,134,140,{"v":145.6666666666666,"d":"146"},154,160,166,174,180,186,194]
[null,"Clase o proyecto.",{"$nulls":5},"%",{"v":0.59,"d":"59%"},{"v":0.6,"d":"60%"},{"v":0.63,"d":"63%"},{"v":0.67,"d":"67%"},{"v":0.7,"d":"70%"},{"v":0.728333333333333,"d":"73%"},{"v":0.77,"d":"77%"},{"v":0.8,"d":"80%"},{"v":0.83,"d":"83%"},{"v":0.87,"d":"87%"},{"v":0.9,"d":"90%"},{"v":0.93,"d":"93%"},{"v":0.97,"d":"97%"}]
[null,"Año / Semestre / Trimestre",{"$nulls":5},"Nota alfabética","F","D-","D","D+","C-","C","C+","B-","B","B+","A-","A","A+"]
[{"$nulls":7},"Nota media",0,0.67,1,1.33,1.67,2,2.33,2.67,3,3.33,3.67,4,4]
[]
[{"$nulls":4},"Nombre de la prueba o tarea",null,null,"HW1","HW2","T1"]
[{"$nulls":4},"Total de puntos disponibles",null,null,50,50,100]
[]
[{"$nulls":4},"Número total de tareas y pruebas:",null,null,{"$f":"COUNTA(H8:AH8)","v":3}]
[{"$nulls":4},"Total de puntos posibles:",null,null,{"$f":"SUM(H9:AH9)","v":200}]
[]
[null,"Nombre del alumno","Id. del alumno","Media","Puntuación","Nota alfabética","Nota media","Columna6","Columna7","Columna8","Columna9","Columna10","Columna11","Columna12","Columna13","Columna14","Columna15","Columna16","Columna17","Columna18","Columna19","Columna20","Columna21","Columna22"]
[null,"Estudiante número 1",null,{"$f":"IFERROR(IF(COUNT(Calificaciones[[#This Row],[Columna6]:[Columna22]])=0,\"\",SUM(Calificaciones[[#This Row],[Columna6]:[Columna22]])/TotalPoints),\"\")","v":{"v":0.91,"d":"91.0%"}},{"$f":"IF(COUNT(Calificaciones[[#This Row],[Columna6]:[Columna22]])=0,\"\",SUM(Calificaciones[[#This Row],[Columna6]:[Columna22]]))","v":182},{"$f":"IFERROR(IF(Calificaciones[[#This Row],[Media]]<>\"\",HLOOKUP(Calificaciones[[#This Row],[Media]]*TotalPoints,GradeTable,3),\"\"),0)","v":"A-"},{"$f":"IFERROR(IF(Calificaciones[[#This Row],[Media]]<>\"\",HLOOKUP(Calificaciones[[#This Row],[Media]]*TotalPoints,GradeTable,4),\"\"),0)","v":3.67},45,45,92]
[null,"Estudiante número dos",null,{"$f":"IFERROR(IF(COUNT(Calificaciones[[#This Row],[Columna6]:[Columna22]])=0,\"\",SUM(Calificaciones[[#This Row],[Columna6]:[Columna22]])/TotalPoints),\"\")","v":{"v":1,"d":"100.0%"}},{"$f":"IF(COUNT(Calificaciones[[#This Row],[Columna6]:[Columna22]])=0,\"\",SUM(Calificaciones[[#This Row],[Columna6]:[Columna22]]))","v":200},{"$f":"IFERROR(IF(Calificaciones[[#This Row],[Media]]<>\"\",HLOOKUP(Calificaciones[[#This Row],[Media]]*TotalPoints,GradeTable,3),\"\"),0)","v":"A+"},{"$f":"IFERROR(IF(Calificaciones[[#This Row],[Media]]<>\"\",HLOOKUP(Calificaciones[[#This Row],[Media]]*TotalPoints,GradeTable,4),\"\"),0)","v":{"v":4,"d":"4.00"}},50,50,100]
[{"$nulls":3},{"$f":"IFERROR(IF(COUNT(Calificaciones[[#This Row],[Columna6]:[Columna22]])=0,\"\",SUM(Calificaciones[[#This Row],[Columna6]:[Columna22]])/TotalPoints),\"\")","v":""},{"$f":"IF(COUNT(Calificaciones[[#This Row],[Columna6]:[Columna22]])=0,\"\",SUM(Calificaciones[[#This Row],[Columna6]:[Columna22]]))","v":""},{"$f":"IFERROR(IF(Calificaciones[[#This Row],[Media]]<>\"\",HLOOKUP(Calificaciones[[#This Row],[Media]]*TotalPoints,GradeTable,3),\"\"),0)","v":""},{"$f":"IFERROR(IF(Calificaciones[[#This Row],[Media]]<>\"\",HLOOKUP(Calificaciones[[#This Row],[Media]]*TotalPoints,GradeTable,4),\"\"),0)","v":""}]
[{"$nulls":3},{"$f":"IFERROR(IF(COUNT(Calificaciones[[#This Row],[Columna6]:[Columna22]])=0,\"\",SUM(Calificaciones[[#This Row],[Columna6]:[Columna22]])/TotalPoints),\"\")","v":""},{"$f":"IF(COUNT(Calificaciones[[#This Row],[Columna6]:[Columna22]])=0,\"\",SUM(Calificaciones[[#This Row],[Columna6]:[Columna22]]))","v":""},{"$f":"IFERROR(IF(Calificaciones[[#This Row],[Media]]<>\"\",HLOOKUP(Calificaciones[[#This Row],[Media]]*TotalPoints,GradeTable,3),\"\"),0)","v":""},{"$f":"IFERROR(IF(Calificaciones[[#This Row],[Media]]<>\"\",HLOOKUP(Calificaciones[[#This Row],[Media]]*TotalPoints,GradeTable,4),\"\"),0)","v":""}]
[{"$nulls":3},{"$f":"IFERROR(IF(COUNT(Calificaciones[[#This Row],[Columna6]:[Columna22]])=0,\"\",SUM(Calificaciones[[#This Row],[Columna6]:[Columna22]])/TotalPoints),\"\")","v":""},{"$f":"IF(COUNT(Calificaciones[[#This Row],[Columna6]:[Columna22]])=0,\"\",SUM(Calificaciones[[#This Row],[Columna6]:[Columna22]]))","v":""},{"$f":"IFERROR(IF(Calificaciones[[#This Row],[Media]]<>\"\",HLOOKUP(Calificaciones[[#This Row],[Media]]*TotalPoints,GradeTable,3),\"\"),0)","v":""},{"$f":"IFERROR(IF(Calificaciones[[#This Row],[Media]]<>\"\",HLOOKUP(Calificaciones[[#This Row],[Media]]*TotalPoints,GradeTable,4),\"\"),0)","v":""}]
[]
[null,"Resumen de la clase",null,"Media",null,"Nota alfabética","Nota media","","","","","","","","","","",""]
[null," Media",null,{"$f":"IFERROR(AVERAGE(Calificaciones[[#All],[Media]]),0)","v":{"v":0.9550000000000001,"d":"95.5%"}},null,{"$f":"IFERROR(HLOOKUP(D22*TotalPoints,GradeTable,3),\"\")","v":"A"},{"$f":"IFERROR(AVERAGE(Calificaciones[[#All],[Nota media]]),0)","v":{"v":3.835,"d":"3.84"}},"","","","","","","","","","","","","","","","",""]
[null," Puntuación más alta",null,{"$f":"IFERROR(MAX(Calificaciones[[#All],[Media]]),0)","v":{"v":1,"d":"100.0%"}},null,{"$f":"IFERROR(HLOOKUP(D23*TotalPoints,GradeTable,3),\"\")","v":"A+"},{"$f":"IFERROR(MAX(Calificaciones[[#All],[Nota media]]),0)","v":{"v":4,"d":"4.00"}},"","","","","","","","","","","","","","","","",""]
[null," Puntuación más baja",null,{"$f":"IFERROR(MIN(Calificaciones[[#All],[Media]]),0)","v":{"v":0.91,"d":"91.0%"}},null,{"$f":"IFERROR(HLOOKUP(D24*TotalPoints,GradeTable,3),\"\")","v":"A-"},{"$f":"IFERROR(MIN(Calificaciones[[#All],[Nota media]]),0)","v":3.67},"","","","","","","","","","","","","","","","",""]